bitfinex-derivatives/quotes_ETHF0:USTF0_20250102
["timestamp","ask_amount","ask_price","bid_price","bid_amount"]
[1735843857411,40.8,3460.9,3460.4,7.69702032]
[1735843857609,0.28921,3460.8,3460.7,0.28921]
[1735843857913,41.0892,3460.9,3460.8,0.2892]
[1735843858302,41.0892,3460.9,3460.4,3.2078]
[1735843858507,0.28922,3460.6,3460.5,0.28922]
[1735843858907,0.28923,3460.5,3460.4,0.28924]
[1735843859113,0.28924,3460.4,3460.3,4.77846032]
[1735843859305,2.2833225,3460.7,3460.3,4.48922032]
[1735843859617,0.28925,3460.3,3460.2,4.48922032]
[1735843860303,41.08925,3460.3,3460.2,4.48922032]
[1735843860503,40.8,3460.3,3460.2,4.77847032]
[1735843860705,41.08925,3460.3,3460.2,4.77847032]
[1735843861204,41.08925,3460.3,3460.2,0.28925]
[1735843861811,40.8,3460.3,3460.2,0.28925]
[1735843863813,2.26385309,3461.3,3461.2,0.28917]
[1735843864017,0.28915,3461.5,3461.2,3.2078]
[1735843864319,0.28915,3461.4,3461.3,1.2792]
[1735843864520,0.28915,3461.5,3461.3,1.56836]
[1735843864713,41.08915,3461.4,3461.3,1.2792]
[1735843865213,40.8,3461.4,3461.3,1.56836]
[1735843866520,40.8,3461.4,3461.3,1.2792]
[1735843866719,41.08916,3461.4,3461.3,1.2792]
[1735843867809,0.28917,3461.2,3461.1,4.49440905]
[1735843868209,0.28917,3461.2,3460.8,4.8219]
[1735843868210,0.28917,3461.2,3461.0,4.49440905]
[1735843868519,0.28918,3461.1,3461.0,4.49440905]
[1735843868716,0.28918,3461.1,3461.0,4.78359905]
[1735843868914,0.28918,3461.1,3461.0,4.49440905]
[1735843869520,40.8,3461.1,3460.6,4.49440905]
[1735843869724,0.28921,3460.8,3460.7,0.28921]
[1735843869914,0.28921,3460.7,3460.6,4.78362905]
[1735843870116,0.28921,3460.7,3460.6,4.49440905]
[1735843870319,41.08921,3460.7,3460.6,4.78362905]
[1735843870717,41.08921,3460.7,3460.6,0.28922]
[1735843871410,40.8,3460.7,3460.6,0.28922]
[1735843871615,41.08921,3460.7,3460.6,0.28922]
[1735843872815,0.28922,3460.6,3460.5,0.28922]
[1735843873521,40.8,3460.7,3460.6,0.28922]
[1735843874621,41.08921,3460.7,3460.6,0.28922]
[1735843875321,40.8,3460.7,3460.4,7.70220905]
[1735843875823,40.8,3460.7,3460.6,0.28922]
[1735843877122,40.8,3460.7,3460.6,4.78362905]
[1735843878120,40.8,3460.7,3460.6,4.84760859]
[1735843879021,41.08921,3460.7,3460.6,4.84760859]
[1735843879621,41.08921,3460.7,3460.6,4.55838859]
[1735843879824,43.3725325,3460.7,3460.6,4.55838859]
[1735843880525,43.0833225,3460.7,3460.6,4.51456463]
[1735843880727,43.3725325,3460.7,3460.6,4.51456463]
[1735843882025,43.0833225,3460.7,3460.4,3.2078]
[1735843882324,0.28923,3460.5,3460.4,3.2078]
[1735843882525,3.6441,3460.6,3460.2,4.51456463]
[1735843882725,41.08925,3460.3,3460.2,4.51456463]
[1735843883118,41.52705,3460.3,3460.2,4.51456463]
[1735843883626,0.28925,3460.2,3460.1,4.51456463]
[1735843884434,41.08925,3460.2,3460.1,4.51456463]
[1735843885236,40.8,3460.2,3460.1,0.28925]
[1735843886122,41.08925,3460.2,3460.1,0.28925]
[1735843886432,40.8,3460.2,3460.1,4.80381463]
[1735843886927,41.08925,3460.2,3460.1,5.69881463]
[1735843887128,40.8,3460.2,3460.1,6.16281463]
[1735843887327,41.08925,3460.2,3460.1,6.16281463]
[1735843887523,41.08925,3460.2,3460.1,4.80381463]
[1735843887725,40.8,3460.2,3460.1,4.85280714]
[1735843888722,41.08925,3460.2,3460.1,4.85280714]
[1735843889434,40.8,3460.2,3460.1,4.85280714]
[1735843889633,41.08925,3460.2,3460.1,4.85280714]
[1735843890231,41.08925,3460.2,3460.1,4.56355714]
[1735843890435,41.08925,3460.2,3460.1,4.80398282]
[1735843891530,40.8,3460.2,3460.1,4.80398282]
[1735843891727,40.8,3460.2,3460.1,0.28926]
[1735843892124,41.08925,3460.2,3460.1,0.28926]
[1735843892429,40.8,3460.2,3460.1,0.28926]
[1735843893031,40.8,3460.2,3460.1,4.8520152]
[1735843894632,41.08925,3460.2,3460.1,4.8520152]
[1735843894832,41.08925,3460.2,3460.1,4.5627552]
[1735843895327,41.08925,3460.2,3460.1,4.8520052]
[1735843895729,41.08925,3460.2,3460.1,4.5627552]
[1735843895924,0.28925,3460.1,3460.0,6.77184695]
[1735843896135,2.5725725,3460.1,3460.0,6.77184695]
[1735843896734,43.3725725,3460.1,3460.0,6.77184695]
[1735843896936,43.0833225,3460.1,3459.5,4.80272431]
[1735843897139,0.2893,3459.6,3459.5,4.80272431]
[1735843897627,0.2893,3459.6,3459.5,4.51342431]
[1735843897829,41.0893,3459.6,3459.5,4.51342431]
[1735843898635,0.28931,3459.5,3459.4,8.01053431]
[1735843899837,0.28931,3459.5,3459.4,3.49711]
[1735843903533,40.8,3459.6,3459.5,0.28931]
[1735843903733,41.0893,3459.6,3459.5,0.28931]
[1735843904937,0.28931,3459.5,3459.4,3.49711]
[1735843905129,0.28931,3459.5,3459.4,3.2078]
[1735843905334,0.28931,3459.5,3459.4,3.49711]
[1735843905531,0.28931,3459.5,3459.4,7.72122431]
[1735843906833,0.28931,3459.5,3459.4,3.49711]
[1735843907644,0.28931,3459.5,3459.4,3.2078]
[1735843908339,41.08931,3459.5,3459.4,3.2078]
[1735843909535,41.08931,3459.5,3459.4,3.49711]
[1735843909743,41.08931,3459.5,3459.4,3.2078]
[1735843910441,41.08931,3459.5,3459.4,3.49711]
[1735843910943,41.08931,3459.5,3459.4,3.2078]
[1735843911137,43.0833225,3459.5,3459.0,4.96032431]
[1735843911335,0.28934,3459.1,3459.0,4.96032431]
[1735843911634,0.28934,3459.1,3459.0,5.24967431]
[1735843912836,0.28934,3459.1,3459.0,4.51342431]
[1735843913042,0.28935,3459.0,3458.9,1.63565]
[1735843914433,0.28935,3459.0,3458.9,1.3463]
[1735843914747,0.28935,3459.0,3458.8,7.72122431]
[1735843914748,5.4911225,3459.0,3458.8,4.51342431]
[1735843915045,0.75516,3458.9,3458.8,4.51342431]
[1735843915257,41.55516,3458.9,3458.8,4.51342431]
[1735843915955,0.2894,3458.4,3458.3,0.2894]
[1735843916557,41.0894,3458.4,3458.3,0.2894]
[1735843916856,40.8,3458.4,3458.3,2.5727225]
[1735843917054,0.28938,3458.7,3458.6,0.28938]
[1735843917552,0.28938,3458.7,3458.4,3.2078]
[1735843917553,41.08938,3458.7,3458.4,3.2078]
[1735843917747,0.28939,3458.6,3458.5,0.71689]
[1735843918852,41.08938,3458.7,3458.6,0.28938]
[1735843919052,41.08938,3458.7,3458.6,0.71268]
[1735843919360,0.28935,3459.1,3459.0,0.28934]
[1735843920056,0.28934,3459.2,3459.1,0.28933]
[1735843920257,0.28935,3459.1,3459.0,0.28934]
[1735843920452,2.2833225,3459.3,3458.8,3.2078]
[1735843920653,0.28936,3458.9,3458.8,3.49716]
[1735843922159,0.28935,3459.0,3458.9,0.28935]
[1735843922352,44.0078,3459.4,3459.1,0.28933]
[1735843922552,44.0078,3459.4,3458.8,3.2078]
[1735843922751,0.28934,3459.2,3459.1,0.28933]
[1735843924860,44.29712,3459.4,3459.3,0.28932]
[1735843926351,41.08932,3459.4,3459.3,0.28932]
[1735843927562,40.8,3459.4,3458.9,4.51342431]
[1735843927763,0.28934,3459.2,3459.1,0.28933]
[1735843928464,0.28934,3459.1,3459.0,4.51342431]
[1735843929364,0.28935,3459.0,3458.9,4.80277431]
[1735843929660,40.8,3459.4,3458.9,4.51342431]
[1735843929855,41.08932,3459.4,3459.3,0.28932]
[1735843930658,0.4581,3460.0,3459.3,0.28932]
[1735843930659,2.26385309,3460.2,3459.3,3.2078]
[1735843930866,2.55311309,3460.2,3460.1,3.49706]
[1735843931062,2.55311309,3460.2,3460.1,3.2078]
[1735843931063,43.35311309,3460.2,3460.1,3.2078]
[1735843931764,43.35311309,3460.2,3460.1,3.49706]
[1735843931967,41.08926,3460.2,3460.1,3.2078]
[1735843932162,43.3725825,3460.2,3460.1,3.2078]
[1735843932461,0.28927,3459.9,3459.8,4.51342431]
[1735843932663,2.5725925,3459.9,3459.8,4.51342431]
[1735843933658,0.28927,3459.9,3459.8,0.28928]
[1735843933964,40.8,3460.2,3460.1,0.28926]
[1735843934663,40.8,3460.2,3460.1,3.49706]
[1735843934967,40.8,3460.2,3460.1,0.28926]
[1735843935759,40.8,3460.2,3460.1,1.17516]
[1735843936259,41.08925,3460.2,3460.1,0.8859]
[1735843936462,41.08925,3460.2,3460.1,0.28926]
[1735843936863,0.28926,3460.1,3460.0,0.422]
[1735843937157,0.28926,3460.0,3459.9,4.51342431]
[1735843937866,41.08926,3460.0,3459.9,4.51342431]
[1735843939065,0.28928,3459.8,3459.7,3.2078]
[1735843939763,40.8,3460.0,3459.7,3.2078]
[1735843939958,0.28928,3459.9,3459.8,0.28927]
[1735843940565,0.28928,3459.8,3459.7,3.49708]
[1735843941653,0.28928,3459.9,3459.8,0.28927]
[1735843942259,0.28928,3459.8,3459.7,8.01051431]
[1735843942762,41.08927,3460.0,3459.9,0.28927]
[1735843943263,40.8,3460.0,3459.9,0.28927]
[1735843944264,40.8,3460.0,3459.9,4.80269431]
[1735843944567,41.08926,3460.0,3459.9,4.80269431]
[1735843945266,41.08926,3460.0,3459.9,4.51342431]
[1735843946973,0.28929,3459.7,3459.6,5.22471431]
[1735843947658,0.28929,3459.7,3459.6,4.51342431]
[1735843948353,0.4465,3459.8,3459.4,4.51342431]
[1735843948568,0.28931,3459.5,3459.4,4.51342431]
[1735843948762,41.08931,3459.5,3459.4,4.51342431]
[1735843949862,0.28933,3459.2,3459.1,0.28934]
[1735843951169,0.28932,3459.4,3459.3,0.28931]
[1735843953562,40.8,3459.5,3459.1,4.51342431]
[1735843953757,0.28933,3459.3,3459.2,0.28932]
[1735843953967,0.28933,3459.2,3459.1,4.80275431]
[1735843954167,0.28933,3459.2,3459.1,7.06117695]
[1735843954462,0.28933,3459.2,3459.1,6.77184695]
[1735843954964,41.55633,3459.2,3459.1,6.77184695]
[1735843955657,41.55633,3459.2,3458.4,0.8727]
[1735843955658,0.28936,3458.9,3458.8,4.5238174]
[1735843956470,41.08936,3458.9,3458.8,4.5238174]
[1735843956774,41.29706,3458.9,3458.8,4.5238174]
[1735843957266,0.28941,3458.3,3458.2,4.5238174]
[1735843958665,6.6575925,3458.6,3458.1,0.4544]
[1735843958865,0.28941,3458.2,3458.1,0.4544]
[1735843959471,0.28941,3458.3,3458.2,0.2894]
[1735843962571,0.28941,3458.2,3458.1,0.74382]
[1735843963771,3.93124,3458.7,3458.1,0.4544]
[1735843963971,0.28941,3458.3,3458.2,0.28941]
[1735843964169,0.28941,3458.2,3458.1,0.74382]
[1735843965673,0.72344,3458.7,3458.2,0.28941]
[1735843965674,0.28941,3458.3,3458.2,0.28941]
[1735843966563,0.28939,3458.5,3458.1,2.7377225]
[1735843966877,0.28936,3458.8,3458.7,0.28936]
[1735843967064,40.8,3458.9,3458.4,2.2833225]
[1735843967270,41.08936,3458.9,3458.8,0.28936]
[1735843967469,0.28936,3458.8,3458.7,0.28937]
[1735843967876,40.8,3458.9,3458.8,0.28936]
[1735843969171,40.8,3458.9,3458.8,4.85423239]
[1735843970678,40.8,3458.9,3458.8,11.62607934]
[1735843971977,41.08936,3458.9,3458.8,4.51774025]
[1735843973578,40.8,3458.9,3458.6,0.28938]
[1735843973875,0.28937,3458.7,3458.6,0.28938]
[1735843974073,40.8,3458.9,3458.4,2.2833225]
[1735843974270,41.08936,3458.9,3458.8,0.28936]
[1735843975272,40.8,3458.9,3458.8,0.28936]
[1735843975473,41.08936,3458.9,3458.8,0.28936]
[1735843976080,41.08936,3458.9,3458.4,0.72349]
[1735843976283,0.28939,3458.5,3458.4,4.51774025]
[1735843976579,0.28939,3458.5,3458.4,4.80714025]
[1735843976879,41.08939,3458.5,3458.4,4.80714025]
[1735843977880,41.08939,3458.5,3458.4,0.2894]
[1735843978081,0.2894,3458.4,3458.3,3.4972]
[1735843979082,41.08939,3458.5,3458.4,0.2894]
[1735843979985,40.8,3458.5,3458.4,0.2894]
[1735843981790,41.08939,3458.5,3458.4,0.2894]
[1735843982189,0.28941,3458.3,3458.2,0.73921]
[1735843982991,40.8,3458.5,3458.2,0.4498]
[1735843983192,41.0894,3458.5,3458.4,0.2894]
[1735843983386,40.8,3458.5,3458.4,0.2894]
[1735843985594,40.8,3458.5,3458.4,0.713]
[1735843986388,40.8,3458.5,3458.4,5.28570308]
[1735843987488,40.8,3458.5,3458.4,12.05755003]
[1735843987889,41.08939,3458.5,3458.4,12.05755003]
[1735843988089,40.8,3458.5,3458.4,12.05755003]
[1735843988587,40.8,3458.5,3458.4,0.713]
[1735843989596,0.28933,3459.3,3459.2,0.28933]
[1735843989995,2.55317309,3459.4,3459.3,0.28932]
[1735843990195,0.28932,3459.4,3459.3,0.28932]
[1735843990695,41.08932,3459.4,3459.3,0.28932]
[1735843990891,40.8,3459.4,3459.3,0.28932]
[1735843991097,2.26385309,3459.5,3459.4,0.28931]
[1735843991592,43.06385309,3459.5,3459.4,0.28931]
[1735843991997,40.8,3459.5,3459.4,0.28931]
[1735843993300,40.8,3459.5,3459.4,25.34697914]
[1735843993496,0.28926,3460.2,3460.1,0.28926]
[1735843993902,0.28926,3460.1,3460.0,0.28927]
[1735843994098,0.28926,3460.2,3460.1,0.28926]
[1735843994295,0.28926,3460.3,3460.1,0.28927]
[1735843994495,40.8,3460.2,3460.1,0.28927]
[1735843996696,40.8,3460.2,3460.1,4.80972297]
[1735843998301,40.8,3460.2,3460.1,0.28927]
[1735843998506,40.8,3460.2,3460.1,5.28927]
[1735843999407,0.2892,3461.1,3460.0,4.52045297]
[1735843999609,0.2892,3461.1,3460.9,0.2892]
[1735843999813,40.8,3461.0,3460.6,3.2078]
[1735844000006,0.28922,3460.8,3460.6,3.2078]
[1735844000206,0.28922,3460.8,3460.6,3.49703]
[1735844000509,0.28921,3460.9,3460.7,0.28922]
[1735844000714,40.8,3461.0,3460.6,3.2078]
[1735844000904,0.28921,3460.9,3460.7,0.28923]
[1735844001209,40.8,3461.0,3460.6,3.2078]
[1735844001615,3.2078,3460.9,3460.1,7.7161467]
[1735844001817,0.28923,3460.7,3460.5,0.28924]
[1735844002014,0.28923,3460.7,3460.2,2.2833225]
[1735844002015,0.28923,3460.6,3460.2,2.2833225]
[1735844002312,0.28927,3460.2,3460.1,7.7161467]
[1735844002818,0.28927,3460.2,3460.1,3.2078]
[1735844003014,3.2078,3460.3,3460.0,0.28928]
[1735844003205,43.0833225,3460.2,3459.6,4.5083467]
[1735844003405,0.28931,3459.7,3459.6,4.5083467]
[1735844003613,0.28931,3459.7,3459.6,4.7976667]
[1735844004007,0.28931,3459.7,3459.6,4.5083467]
[1735844004008,41.08931,3459.7,3459.6,4.5083467]
[1735844004415,0.28932,3459.6,3459.5,0.28932]
[1735844004616,0.72832,3459.6,3459.5,0.28932]
[1735844006622,0.28933,3459.5,3459.4,0.28933]
[1735844007619,0.72832,3459.6,3459.5,0.28932]
[1735844007819,0.439,3459.6,3459.1,2.7255225]
[1735844008123,0.439,3459.6,3459.5,0.28932]
[1735844008315,0.72832,3459.6,3459.5,0.28932]
[1735844008522,0.439,3459.6,3459.5,0.28932]
[1735844008716,0.72832,3459.6,3459.5,0.28932]
[1735844009928,0.439,3459.6,3459.5,0.28932]
[1735844010622,0.72832,3459.6,3459.5,0.28932]
[1735844011421,0.439,3459.6,3459.5,0.28932]
[1735844011622,0.72832,3459.6,3459.5,0.28932]
[1735844012120,0.439,3459.6,3459.1,2.7255225]
[1735844012321,0.72832,3459.6,3459.5,0.28933]
[1735844013925,0.439,3459.6,3459.1,2.7255225]
[1735844014125,0.28934,3459.4,3459.3,0.28934]
[1735844014934,0.28933,3459.5,3459.3,0.28934]
[1735844015530,0.439,3459.6,3459.1,2.7255225]
[1735844015834,0.72832,3459.6,3459.5,0.28933]
[1735844016133,0.439,3459.6,3459.5,0.28933]
[1735844016333,0.72832,3459.6,3459.5,0.28933]
[1735844017532,0.439,3459.6,3459.5,0.28933]
[1735844018224,0.72832,3459.6,3459.5,0.28933]
[1735844018623,40.8,3459.7,3459.4,5.4911225]
[1735844018923,40.8,3459.7,3459.6,0.28932]
[1735844019121,0.28926,3460.3,3460.2,0.28927]
[1735844019324,0.4297,3460.4,3460.3,0.28926]
[1735844019524,2.55710325,3460.6,3460.5,0.28924]
[1735844019736,2.26786325,3460.6,3460.5,0.28924]
[1735844020031,0.4297,3460.8,3460.7,0.28922]
[1735844020229,2.26786325,3461.1,3461.0,0.2892]
[1735844020533,43.06786325,3461.1,3461.0,0.2892]
[1735844021928,41.08919,3461.1,3461.0,0.2892]
[1735844022129,40.8,3461.1,3461.0,0.2892]
[1735844022531,40.8,3461.1,3460.8,0.28921]
[1735844022731,0.28922,3460.8,3460.7,3.49702]
[1735844022933,0.28922,3460.8,3460.7,0.28922]
[1735844023329,0.28922,3460.7,3460.6,0.28923]
[1735844023532,0.4281,3461.1,3460.4,1.3145]
[1735844023736,0.4281,3461.1,3460.6,2.2833225]
[1735844023936,0.28921,3461.0,3460.9,0.28921]
[1735844024135,41.08921,3461.0,3460.9,0.28921]
[1735844024630,41.08921,3461.0,3460.7,0.28922]
[1735844024631,0.28922,3460.8,3460.7,0.28922]
[1735844025039,0.28923,3460.7,3460.6,0.28923]
[1735844025335,0.28923,3460.7,3460.6,0.28922]
[1735844025629,40.8,3460.7,3460.5,0.28924]
[1735844025839,40.8,3460.7,3460.6,0.28923]
[1735844027530,41.08922,3460.7,3460.6,0.28923]
[1735844028332,40.8,3460.7,3460.6,0.28923]
[1735844030732,41.08922,3460.7,3460.6,0.28923]
[1735844032333,40.8,3460.7,3460.6,0.28923]
[1735844033440,41.08922,3460.7,3460.6,0.28923]
[1735844033632,40.8,3460.7,3460.6,0.28923]
[1735844033941,41.08922,3460.7,3460.6,0.28923]
[1735844034730,40.8,3460.7,3460.6,0.28923]
[1735844035133,40.8,3460.7,3460.6,2.5725525]
[1735844036433,0.74386,3461.5,3460.6,2.2833225]
[1735844036639,0.74386,3461.5,3461.4,0.28917]
[1735844036933,2.26786325,3461.6,3461.5,0.28916]
[1735844037334,3.2078,3461.8,3461.3,2.2833225]
[1735844037637,3.2078,3461.8,3461.7,0.28914]
[1735844038039,44.0078,3461.8,3461.7,0.28914]
[1735844038235,40.8,3461.8,3461.7,0.28914]
[1735844041230,40.8,3461.8,3461.4,4.3868]
[1735844041434,0.28915,3461.7,3461.6,0.28914]
[1735844041634,0.28915,3461.7,3461.4,4.3868]
[1735844041635,0.72281,3462.0,3461.4,3.2078]
[1735844041836,0.28916,3461.5,3461.4,3.49696]
[1735844042342,41.08916,3461.5,3461.4,3.2078]
[1735844043338,0.28918,3461.2,3461.1,4.7975267]
[1735844043535,0.28918,3461.2,3461.1,4.5083467]
[1735844043735,0.28918,3461.2,3461.1,0.28919]
[1735844044644,40.8,3461.5,3461.0,2.2833225]
[1735844044944,41.08916,3461.5,3461.4,0.28917]
[1735844045140,0.28918,3461.4,3461.3,0.28917]
[1735844045443,0.28918,3461.4,3460.8,4.5297]
[1735844045444,0.28919,3461.2,3461.1,0.28919]
[1735844046130,0.28921,3461.0,3460.9,0.2892]
[1735844046332,3.2078,3461.2,3460.5,4.5083467]
[1735844046539,0.28921,3460.9,3460.8,0.28921]
[1735844047040,0.2892,3461.0,3460.9,0.2892]
[1735844047435,1.79698,3461.7,3461.4,0.28916]
[1735844047436,0.28917,3461.5,3461.4,0.28916]
[1735844047636,41.08916,3461.5,3461.4,0.28917]
[1735844047837,0.28918,3461.4,3461.3,0.28917]
[1735844048335,40.8,3461.5,3461.1,0.4271]
[1735844048538,40.8,3461.5,3461.4,0.28917]
[1735844049040,41.08916,3461.5,3461.4,0.28917]
[1735844049540,40.8,3461.5,3461.4,0.28917]
[1735844051345,41.08916,3461.5,3461.4,0.28917]
[1735844051548,40.8,3461.5,3461.4,0.28917]
[1735844051839,40.8,3461.5,3461.2,0.4463]
[1735844052041,40.8,3461.5,3460.9,3.2078]
[1735844052247,0.28921,3460.9,3460.8,4.5083467]
[1735844052456,0.28921,3460.9,3460.8,4.7975667]
[1735844052949,41.08921,3460.9,3460.8,4.7975667]
[1735844053442,41.08921,3460.9,3460.8,4.5083467]
[1735844053637,41.08921,3460.9,3460.8,4.7975667]
[1735844053845,41.08921,3460.9,3460.6,6.78067946]
[1735844053846,0.28923,3460.7,3460.6,0.28923]
[1735844054046,0.28922,3460.8,3460.7,0.28922]
[1735844054639,41.08922,3460.9,3460.8,0.28922]
[1735844055547,0.28922,3460.8,3460.7,0.28922]
[1735844055742,40.8,3460.9,3460.5,1.65584]
[1735844055743,0.28923,3460.6,3460.5,1.65584]
[1735844056153,0.28923,3460.6,3460.5,0.73564]
[1735844056643,4.37265,3460.8,3460.2,0.8737]
[1735844056847,4.37265,3460.8,3460.1,2.7057225]
[1735844056848,0.28927,3460.2,3460.1,0.71167]
[1735844058153,0.28926,3460.3,3460.2,0.28926]
[1735844058345,0.72308,3460.7,3460.0,7.7161467]
[1735844058645,0.73607,3460.2,3460.1,0.28927]
[1735844058850,41.53607,3460.2,3460.1,0.28927]
[1735844060049,41.08927,3460.2,3460.1,0.28927]
[1735844061146,40.8,3460.2,3460.1,0.28927]
[1735844061348,41.08927,3460.2,3460.1,0.28927]
[1735844061944,40.8,3460.2,3460.1,0.28927]
[1735844063045,0.4468,3460.6,3460.0,7.7161467]
[1735844063251,0.28926,3460.4,3460.3,0.28925]
[1735844063453,0.28926,3460.3,3460.2,0.28926]
[1735844063749,40.8,3460.3,3460.2,0.28926]
[1735844064555,3.6496,3460.8,3460.6,0.28922]
[1735844064556,0.28923,3460.7,3460.6,0.28922]
[1735844065146,41.08923,3460.7,3460.6,0.28922]
[1735844065851,0.28924,3460.6,3460.5,0.28924]
[1735844066159,0.28925,3460.5,3460.4,0.28924]
[1735844066651,41.08925,3460.5,3460.4,4.82909569]
[1735844068045,41.08925,3460.5,3460.4,0.28924]
[1735844068245,40.8,3460.5,3460.4,0.28924]
[1735844069049,41.08924,3460.5,3460.4,0.28924]
[1735844069451,41.08924,3460.5,3460.4,4.82909569]
[1735844069749,40.8,3460.5,3460.4,4.82909569]
[1735844070653,41.08924,3460.5,3460.4,4.82909569]
[1735844070847,41.08924,3460.5,3460.4,9.26305291]
[1735844071353,41.08924,3460.5,3460.4,8.97381291]
[1735844071850,41.08924,3460.5,3460.4,9.26306291]
[1735844072350,41.08924,3460.5,3460.4,0.28925]
[1735844073256,40.8,3460.5,3460.3,4.53985569]
[1735844073556,40.8,3460.5,3460.2,4.53985569]
[1735844073754,41.08925,3460.5,3460.4,0.28925]
[1735844075747,40.8,3460.5,3460.4,0.28925]
[1735844078259,41.08924,3460.5,3460.4,0.28925]
[1735844078463,40.8,3460.5,3460.4,0.28925]
[1735844078658,41.08924,3460.5,3460.4,0.28925]
[1735844080366,40.8,3460.5,3460.4,0.28925]
[1735844080560,41.08924,3460.5,3460.4,0.28925]
[1735844084469,0.28926,3460.4,3460.3,0.28925]
[1735844084869,0.28926,3460.4,3460.3,4.82910569]
[1735844085370,40.8,3460.5,3460.3,4.53985569]
[1735844085575,0.28925,3460.4,3460.3,4.82910569]
[1735844090273,0.28925,3460.4,3460.3,4.72170419]
[1735844090773,0.29025,3460.4,3460.3,4.72170419]
[1735844091876,0.001,3460.4,3460.3,4.72170419]
[1735844093565,0.001,3460.4,3460.3,24.88158074]
[1735844096172,0.001,3460.4,3460.3,13.5804483]
[1735844096368,0.001,3460.4,3460.3,14.7584483]
[1735844096577,2.26786325,3461.3,3461.2,0.28918]
[1735844096976,2.26786325,3461.3,3461.2,1.15638]
[1735844096977,43.06786325,3461.3,3461.2,1.15638]
[1735844097669,40.8,3461.3,3461.2,5.58883419]
[1735844098584,0.28917,3461.4,3461.2,5.29965419]
[1735844098791,0.28917,3461.4,3461.3,0.28917]
[1735844099283,41.08917,3461.4,3461.3,0.28917]
[1735844099477,40.8,3461.4,3461.2,14.37277436]
[1735844099679,0.28917,3461.3,3461.2,14.66195436]
[1735844100985,0.28917,3461.3,3461.2,5.16803419]
[1735844101382,2.26786325,3461.7,3461.6,0.28915]
[1735844101683,2.26786325,3461.7,3461.6,5.7802725]
[1735844102079,2.55694325,3462.5,3461.6,18.77713379]
[1735844102279,3.86909488,3462.6,3462.1,3.2078]
[1735844102280,0.4673,3462.6,3462.1,3.2078]
[1735844102480,0.4673,3462.6,3462.5,0.28907]
[1735844102981,40.8,3463.1,3462.5,3.2078]
[1735844103280,41.2673,3463.1,3463.0,0.28903]
[1735844103586,40.8,3463.1,3463.0,0.28903]
[1735844103884,4.99349091,3463.3,3463.0,0.4513]
[1735844104081,4.54229091,3463.3,3463.2,2.5723425]
[1735844104480,3.13969091,3463.3,3463.2,2.5723425]
[1735844104679,0.69270188,3463.3,3463.2,7.5723425]
[1735844104880,5.67786364,3463.5,3463.4,0.289]
[1735844105083,5.67786364,3463.5,3463.4,4.6748]
[1735844105479,0.4617,3464.2,3464.1,0.28894]
[1735844105685,0.4617,3464.2,3464.1,3.49674]
[1735844107083,0.75063,3464.2,3464.1,3.2078]
[1735844107485,0.28896,3463.9,3463.7,3.2078]
[1735844107682,0.28896,3463.9,3463.7,3.49677]
[1735844107980,0.4617,3464.2,3463.7,3.2078]
[1735844107981,41.08897,3463.8,3463.7,3.2078]
[1735844108187,41.54087,3463.8,3463.7,3.2078]
[1735844109183,0.289,3463.4,3463.3,3.2078]
[1735844109383,44.4597,3463.8,3463.3,3.2078]
[1735844109586,0.28899,3463.5,3463.3,3.2078]
[1735844109785,0.289,3463.4,3463.3,3.2078]
[1735844110686,44.4597,3463.8,3463.5,0.28898]
[1735844110888,41.2519,3463.8,3463.3,5.4911225]
[1735844111086,41.54087,3463.8,3463.7,0.28897]
[1735844111395,41.2519,3463.8,3463.7,0.28897]
[1735844111687,41.54087,3463.8,3463.6,0.28898]
[1735844111990,41.54087,3463.8,3463.3,5.4911225]
[1735844111991,41.2519,3463.8,3463.3,5.4911225]
[1735844112287,40.8,3463.8,3463.7,0.28897]
[1735844112485,40.8,3463.8,3463.7,3.49677]
[1735844113078,40.8,3463.8,3463.7,0.28897]
[1735844113282,40.8,3463.8,3463.3,3.2078]
[1735844113481,0.4459,3463.7,3463.1,0.28902]
[1735844113687,0.28903,3463.1,3462.9,3.49684]
[1735844113884,0.4324,3463.0,3462.9,3.49684]
[1735844114084,0.72143,3463.0,3462.9,3.2078]
[1735844114289,0.72143,3463.0,3462.6,0.28906]
[1735844114290,0.28905,3462.9,3462.6,0.28906]
[1735844114491,0.28906,3462.7,3462.4,0.28908]
[1735844114685,0.28906,3462.7,3462.3,3.6732]
[1735844114987,0.28909,3462.4,3462.1,0.28911]
[1735844115185,0.28909,3462.4,3461.9,3.669]
[1735844115186,0.28907,3462.5,3462.2,0.28909]
[1735844115489,40.8,3462.6,3462.0,0.28912]
[1735844115683,0.28909,3462.4,3462.1,0.28911]
[1735844116294,0.28909,3462.4,3461.9,3.2078]
[1735844116588,0.28909,3462.4,3462.1,0.2891]
[1735844116989,40.8,3462.6,3461.9,3.2078]
[1735844117188,0.28909,3462.4,3462.2,0.28909]
[1735844118491,0.28909,3462.4,3462.0,0.28912]
[1735844118690,0.28909,3462.4,3462.3,0.28909]
[1735844118889,0.28909,3462.4,3461.9,3.2078]
[1735844119088,0.4584,3462.3,3462.2,0.28909]
[1735844119696,0.74749,3462.3,3462.1,0.2891]
[1735844119894,0.74749,3462.3,3462.2,0.2891]
[1735844120499,0.7475,3462.3,3462.1,0.2891]
[1735844120797,0.7475,3462.3,3461.9,3.2078]
[1735844120798,0.4584,3462.3,3462.2,0.2891]
[1735844120992,0.74749,3462.3,3462.2,0.2891]
[1735844121200,0.4584,3462.3,3462.2,0.2891]
[1735844121492,0.4584,3462.3,3461.9,3.2078]